[Event "EIWCC 2018"]
[Site "Vysoke Tatry"]
[Date "2018.04.11"]
[Round "4"]
[White "Gvanceladze, Anna"]
[Black "Arabidze, Meri"]
[Result "0-1"]
[ECO "B40"]
[WhiteElo "2302"]
[BlackElo "2393"]
[Annotator "NA"]
[PlyCount "120"]
[EventDate "2018.??.??"]
[EventType "swiss"]
[EventCountry "SVK"]
[SourceTitle "playchess.com"]
[Source "ChessBase"]
[SourceQuality "1"]
[TimeControl "40/5400+30:1800+30"]

1. e4 {[%emt 0:00:00]} c5 {[%emt 0:00:06]} 2. Nf3 {[%emt 0:00:00]} e6 {[%emt 0:00:07]} 3. g3 {[%emt 0:00:00]} d5 {[%emt 0:01:11]} 4. exd5 {[%emt 0:00:08]} exd5 {[%emt 0:00:04]} 5. d4 {[%emt 0:00:09]} Bd6 {[%emt 0:02:54] B40: Sicilian: 2...e6, Unusual lines} (5... Nf6 6. Bg2 Be7 7. O-O O-O 8. dxc5 Bxc5 9. Nc3 Nc6 10. a3 a6 11. b4 Ba7 12. Qd3 h6 13. Bb2 Ne7 14. Rad1 Bf5 15. Qd2 Ne4 16. Nxe4 Bxe4 17. Bd4 Bxd4 18. Nxd4 Bxg2 19. Kxg2 {1-0 (54) Kobalia,M (2596)-Rublevsky,S (2683) Sochi 2017}) 6. Bg2 {[%emt 0:00:37]} Ne7 {[%emt 0:00:15]} 7. O-O {[%emt 0:01:06]} O-O {[%emt 0:00:12]} 8. Nc3 {[%emt 0:05:26]} a6 {[%emt 0:01:51]} 9. Bg5 $146 {[%emt 0:03:51]} ({Predecessor:} 9. Re1 Nbc6 10. Bg5 f6 11. Be3 c4 12. Nh4 Bc7 13. Qh5 {0-1 (61) Frei,A (1747)-Pineiro,D (2180) Villa Martelli 2011}) 9... f6 {[%emt 0:07:57]} 10. Be3 {[%emt 0:00:55]} c4 {[%emt 0:03:04]} 11. Nd2 {[%emt 0:23:38]} Be6 {[%emt 0:02:10]} 12. Re1 {[%emt 0:07:51]} Bf7 {[%emt 0:01:27]} 13. Qf3 {[%emt 0:06:36]} Nbc6 {[%emt 0:00:56]} 14. Ne2 {[%emt 0:09:56] [#]} Nb4 $1 {[%emt 0:04:19]} 15. Rec1 {[%emt 0:01:13] [#]} Bg6 $1 {[%emt 0:01:41]} 16. c3 {[%emt 0:01:08]} Nc2 {[%emt 0:02:29]} 17. Rab1 {[%emt 0:00:06]} Nxe3 {[%emt 0:02:30]} 18. fxe3 {[%emt 0:01:45]} Bxb1 {[%emt 0:00:18]} 19. Rxb1 {[%emt 0:00:04]} Qa5 {[%emt 0:07:36]} 20. e4 {[%emt 0:03:48]} Qxa2 {[%emt 0:01:48]} 21. Nf4 {[%emt 0:03:45]} Bxf4 $1 {[%emt 0:17:19]} 22. Qxf4 {[%emt 0:02:10]} Rad8 {[%emt 0:00:57]} 23. Qc7 {[%emt 0:03:40]} Qa4 {[%emt 0:02:42]} 24. Qxe7 {[%emt 0:06:57]} Qc2 {[%emt 0:00:12]} 25. Qxb7 {[%emt 0:01:59]} Qxd2 {[%emt 0:01:44]} 26. exd5 {[%emt 0:05:00]} Rfe8 {[%emt 0:02:47]} 27. Rf1 {[%emt 0:00:01]} Rb8 {[%emt 0:13:31]} 28. Qc6 {[%emt 0:00:15]} Qxb2 {[%emt 0:00:33]} 29. Qxc4 {[%emt 0:01:31]} Rec8 {[%emt 0:02:11]} 30. Qxa6 {[%emt 0:00:24]} Qxc3 {[%emt 0:00:12]} 31. Qe6+ {[%emt 0:02:11]} Kh8 {[%emt 0:00:07]} 32. Qe4 {[%emt 0:02:19]} Re8 {[%emt 0:01:42]} 33. Qh4 {[%emt 0:00:56]} Rb4 {[%emt 0:01:07]} 34. Rd1 {[%emt 0:04:41]} Re1+ {[%emt 0:01:47]} 35. Rxe1 {[%emt 0:00:06]} Qxe1+ {[%emt 0:00:03]} 36. Bf1 {[%emt 0:00:04]} Qe3+ {[%emt 0:00:24]} 37. Kg2 {[%emt 0:00:14]} Rxd4 {[%emt 0:00:33]} 38. Qh5 {[%emt 0:00:19]} Qe4+ {[%emt 0:00:32]} 39. Kg1 {[%emt 0:01:12]} Rxd5 {[%emt 0:00:46]} 40. Qe2 {[%emt 0:00:00]} Qxe2 {[%emt 0:01:05]} 41. Bxe2 {[%emt 0:03:23]} Rd2 {[%emt 0:00:05]} 42. Kf2 {[%emt 0:00:06]} g6 {[%emt 0:00:43]} 43. Ke3 {[%emt 0:00:07]} Ra2 {[%emt 0:00:24]} 44. h4 {[%emt 0:00:46]} Kg7 {[%emt 0:02:34]} 45. Bc4 $19 {[%emt 0:00:24]} Ra3+ {[%emt 0:00:11]} 46. Kf2 {[%emt 0:00:04]} f5 {[%emt 0:01:26]} 47. Bd5 {[%emt 0:00:23]} Kf6 {[%emt 0:00:08]} 48. Kg2 {[%emt 0:00:27]} h6 {[%emt 0:00:50]} 49. Kf2 {[%emt 0:00:18]} Ke5 {[%emt 0:00:58]} 50. Bf7 {[%emt 0:00:48]} g5 {[%emt 0:01:22]} 51. hxg5 {[%emt 0:00:09]} hxg5 {[%emt 0:00:01]} 52. Bg6 {[%emt 0:00:27]} Ra2+ {[%emt 0:03:45]} 53. Ke3 {[%emt 0:00:14]} Ra6 {[%emt 0:00:18]} 54. Be8 {[%emt 0:01:48]} Ra3+ {[%emt 0:00:38]} 55. Kf2 {[%emt 0:00:08]} Rc3 {[%emt 0:00:28]} 56. Ba4 {[%emt 0:00:28]} f4 {[%emt 0:01:33]} 57. gxf4+ {[%emt 0:00:09]} Kxf4 {[%emt 0:00:10]} 58. Kg2 {[%emt 0:00:15]} Rd3 {[%emt 0:00:36]} 59. Bc6 {[%emt 0:00:26]} Rd2+ {[%emt 0:00:12]} 60. Kg1 {[%emt 0:00:48]} Kg3 {[%emt 0:00:09]} 0-1

[Event "EIWCC 2018"]
[Site "Vysoke Tatry"]
[Date "2018.04.11"]
[Round "4"]
[White "Kursova, Maria"]
[Black "Sucikova, Svetlana"]
[Result "1-0"]
[ECO "D27"]
[WhiteElo "2278"]
[BlackElo "2107"]
[Annotator "NA"]
[PlyCount "81"]
[EventDate "2018.??.??"]
[EventType "swiss"]
[EventCountry "SVK"]
[SourceTitle "playchess.com"]
[Source "ChessBase"]
[SourceQuality "1"]
[TimeControl "40/5400+30:1800+30"]

1. d4 {[%emt 0:00:00]} d5 {[%emt 0:00:22]} 2. Nf3 {[%emt 0:00:00]} Nf6 {[%emt 0:01:04]} 3. c4 {[%emt 0:00:09]} dxc4 {[%emt 0:01:00]} 4. e3 {[%emt 0:00:20]} e6 {[%emt 0:00:18]} 5. Bxc4 {[%emt 0:00:23]} c5 {[%emt 0:01:10]} 6. O-O {[%emt 0:00:36]} a6 {[%emt 0:00:24]} 7. b3 {[%emt 0:00:22]} b5 {[%emt 0:07:15]} 8. Be2 {[%emt 0:00:54]} Bb7 {[%emt 0:00:08]} 9. Bb2 {[%emt 0:08:57]} Nbd7 {[%emt 0:01:15]} 10. Nbd2 {[%emt 0:02:15]} Be7 {[%emt 0:00:31]} 11. a4 {[%emt 0:01:21]} b4 {[%emt 0:00:55]} 12. Rc1 {[%emt 0:03:58] D27: Queen's Gambit Accepted: Classical main line: 7 e4!? and 7 a4} Rc8 {[%emt 0:03:31] LiveBook: 3 Games} (12... O-O 13. dxc5 Bxc5 14. Ne5 Rc8 15. Bf3 Nd5 16. Nxd7 Qxd7 17. Nc4 Qe7 18. Qe2 Ba7 19. g3 Bb8 {½-½ (58) Aronian,L (2793)-Caruana,F (2808) Stavanger 2017}) 13. Rc2 {[%emt 0:26:54]} O-O {[%emt 0:05:36]} 14. Qa1 $146 {[%emt 0:01:59]} ({Predecessor:} 14. Qb1 cxd4 15. Rxc8 Qxc8 16. Rc1 Qa8 17. Bxd4 Nd5 18. e4 Nf4 19. Bf1 Nf6 {0-1 (51) Kislik,E (2362)-Hera,I (2566) Budapest 2014}) 14... cxd4 {[%emt 0:00:33]} 15. Rxc8 {[%emt 0:01:32]} Qxc8 {[%emt 0:00:09]} 16. Bxd4 {[%emt 0:03:51]} Qa8 {[%emt 0:04:35]} 17. Nc4 {[%emt 0:03:28]} Rd8 {[%emt 0:06:51]} 18. Rc1 {[%emt 0:03:34]} Bd5 {[%emt 0:02:52]} 19. a5 {[%emt 0:10:22]} Qb7 {[%emt 0:03:23]} 20. Ne1 $11 {[%emt 0:06:41]} Bc5 {[%emt 0:22:57]} 21. Nb6 {[%emt 0:04:30]} Bxd4 {[%emt 0:02:22]} 22. Qxd4 {[%emt 0:00:55]} Bxb3 {[%emt 0:07:53]} 23. Qxb4 {[%emt 0:00:46]} Ba2 {[%emt 0:07:09]} 24. Ra1 {[%emt 0:04:52]} Bd5 {[%emt 0:02:51]} 25. Nxd5 {[%emt 0:00:06]} Qxd5 {[%emt 0:00:04]} 26. Bxa6 {[%emt 0:00:12]} Rb8 {[%emt 0:00:37]} 27. Qd4 {[%emt 0:01:17]} Qxd4 {[%emt 0:03:06]} 28. exd4 {[%emt 0:00:03]} Nd5 {[%emt 0:02:18]} 29. g3 {[%emt 0:07:24]} Nb4 {[%emt 0:01:24]} 30. Bc4 {[%emt 0:00:29]} Ra8 {[%emt 0:01:37]} 31. Ra4 {[%emt 0:03:20]} Nc6 {[%emt 0:02:41]} 32. Bb5 {[%emt 0:02:06]} Ndb8 {[%emt 0:00:29]} 33. a6 {[%emt 0:00:23]} Kf8 {[%emt 0:01:34]} 34. Nf3 {[%emt 0:01:23]} Ke7 {[%emt 0:02:09]} 35. Ne5 {[%emt 0:00:12]} Nxe5 {[%emt 0:03:42]} 36. dxe5 {[%emt 0:00:01]} Ra7 {[%emt 0:00:06]} 37. Rd4 {[%emt 0:02:02]} Rc7 {[%emt 0:00:53]} 38. Rd6 {[%emt 0:00:10]} Ra7 {[%emt 0:02:01]} 39. Kg2 {[%emt 0:00:42]} g5 {[%emt 0:00:11]} 40. Kf3 {[%emt 0:00:00]} f6 {[%emt 0:00:11]} 41. Rb6 {[%emt 0:02:31]} 1-0

[Event "EIWCC 2018"]
[Site "Vysoke Tatry"]
[Date "2018.04.11"]
[Round "4"]
[White "Mamedjarova, Turkan"]
[Black "Schleining, Zoya"]
[Result "1/2-1/2"]
[ECO "D01"]
[WhiteElo "2274"]
[BlackElo "2382"]
[Annotator "NA"]
[PlyCount "66"]
[EventDate "2018.??.??"]
[EventType "swiss"]
[EventCountry "SVK"]
[SourceTitle "playchess.com"]
[Source "ChessBase"]
[SourceQuality "1"]
[TimeControl "40/5400+30:1800+30"]

{[%evp 13,52,-28,-17,32767,32767,32767,-26,-21,-16,-38,-22,-37,-35,-48,-28,-77,-77,32767,-72,-80,-82,-122,-89,-106,-94,-89,-66,-100,-81,32767,32767,-83,32767,32767,32767,32767,32767,32767,32767,-68,-33]} 1. d4 {[%emt 0:00:00]} Nf6 {[%emt 0:00:06]} 2. Nc3 {[%emt 0:00:00]} d5 {[%emt 0:00:17]} 3. Bg5 {[%emt 0:00:00]} Nbd7 {[%emt 0:02:05]} 4. e3 {[%emt 0:00:11]} e6 {[%emt 0:02:24]} 5. Nf3 {[%emt 0:00:27]} h6 {[%emt 0:02:43] D01: Veresov Opening} (5... c5 6. dxc5 Bxc5 7. Bd3 h6 8. Bh4 Be7 9. O-O O-O 10. Qe2 Nc5 11. Rfd1 b6 12. Ne5 Bb7 13. Nb5 {½-½ (114) Sean,W (2403)-Shyam,S (2536) Ho Chi Minh City 2017}) 6. Bf4 {[%emt 0:01:45]} a6 {[%emt 0:03:51]} 7. Bd3 {[%emt 0:00:52] LiveBook: 5 Games} c5 {[%emt 0:01:07]} 8. O-O {[%emt 0:00:19]} c4 {[%emt 0:04:54]} 9. Be2 {[%emt 0:00:06]} b5 {[%emt 0:02:06]} 10. a3 {[%emt 0:03:13]} Bb7 {[%emt 0:03:45]} 11. Ne5 {[%emt 0:06:38]} Be7 $146 {[%emt 0:05:42]} ({Predecessor:} 11... Nxe5 12. Bxe5 Be7 13. Re1 {0-1 (53) Galue,M (2007)-Pereira,N (2051) ICCF email 2014}) 12. Bg3 {[%emt 0:02:16]} Nxe5 {[%emt 0:14:08]} 13. Bxe5 {[%emt 0:03:38]} O-O {[%emt 0:01:39]} 14. Bxf6 {[%emt 0:00:18]} Bxf6 {[%emt 0:00:06]} 15. f4 {[%emt 0:00:07]} Bc6 {[%emt 0:07:53]} 16. Bg4 {[%emt 0:21:18]} Qb6 {[%emt 0:06:17]} 17. Kh1 {[%emt 0:06:12]} g6 {[%emt 0:09:27]} 18. Bf3 {[%emt 0:00:18]} a5 {[%emt 0:01:10]} 19. g4 {[%emt 0:01:10]} b4 {[%emt 0:01:02]} 20. Ne2 {[%emt 0:03:56]} bxa3 {[%emt 0:02:04]} 21. bxa3 {[%emt 0:00:08]} Rab8 {[%emt 0:00:43]} 22. Qd2 {[%emt 0:05:19]} Qd8 {[%emt 0:02:41] [#]} 23. f5 $1 {[%emt 0:01:44]} Bg5 {[%emt 0:06:22]} 24. Bg2 {[%emt 0:01:18]} exf5 {[%emt 0:05:16]} 25. gxf5 {[%emt 0:00:48]} Qd6 {[%emt 0:00:09]} 26. Nf4 {[%emt 0:04:50]} Rbe8 {[%emt 0:00:48]} 27. fxg6 {[%emt 0:12:35]} fxg6 {[%emt 0:00:02]} 28. Qxa5 {[%emt 0:00:05]} Rxe3 {[%emt 0:05:21]} 29. Bxd5+ {[%emt 0:02:07]} Bxd5+ {[%emt 0:00:15]} 30. Qxd5+ {[%emt 0:04:47]} Qxd5+ {[%emt 0:00:06]} 31. Nxd5 {[%emt 0:00:02]} Rxf1+ {[%emt 0:00:32]} 32. Rxf1 {[%emt 0:00:02]} Rxa3 {[%emt 0:00:12]} 33. c3 {[%emt 0:01:58]} Bd2 {[%emt 0:03:00]} 1/2-1/2

[Event "EIWCC 2018"]
[Site "Vysoke Tatry"]
[Date "2018.04.11"]
[Round "4"]
[White "Rodshtein, Tereza"]
[Black "Kaliadzich, Maryia"]
[Result "1/2-1/2"]
[ECO "B19"]
[WhiteElo "2226"]
[BlackElo "2078"]
[Annotator "ChessBase"]
[PlyCount "92"]
[EventDate "2018.??.??"]
[EventType "swiss"]
[EventCountry "SVK"]
[SourceTitle "playchess.com"]
[Source "ChessBase"]
[SourceQuality "1"]
[TimeControl "40/5400+30:1800+30"]

1. e4 {[%emt 0:00:00]} c6 {[%emt 0:00:08]} 2. d4 {[%emt 0:00:00]} d5 {[%emt 0:00:05]} 3. Nd2 {[%emt 0:00:00]} dxe4 {[%emt 0:00:05]} 4. Nxe4 {[%emt 0:00:00]} Bf5 {[%emt 0:00:03]} 5. Ng3 {[%emt 0:00:04]} Bg6 {[%emt 0:00:04]} 6. h4 {[%emt 0:00:16]} h6 {[%emt 0:00:04]} 7. Nf3 {[%emt 0:00:06]} Nd7 {[%emt 0:00:04]} 8. h5 {[%emt 0:00:19]} Bh7 {[%emt 0:00:05]} 9. Bd3 {[%emt 0:00:17]} Bxd3 {[%emt 0:00:06]} 10. Qxd3 {[%emt 0:00:05]} Ngf6 {[%emt 0:00:19]} 11. Bd2 {[%emt 0:00:17]} e6 {[%emt 0:00:09]} 12. O-O-O {[%emt 0:00:27]} Qc7 {[%emt 0:00:06]} 13. Kb1 {[%emt 0:02:05]} O-O-O {[%emt 0:00:39]} 14. Ne4 {[%emt 0:00:53]} c5 {[%emt 0:12:40]} 15. Nxf6 {[%emt 0:00:27]} Nxf6 {[%emt 0:00:20]} 16. Qc4 {[%emt 0:02:41]} Nd5 {[%emt 0:21:48]} 17. Rh4 {[%emt 0:12:10]} cxd4 {[%emt 0:15:54]} 18. Qa4 {[%emt 0:12:40]} Bc5 {[%emt 0:16:06]} 19. Nxd4 {[%emt 0:01:00]} Nb6 {[%emt 0:04:46]} 20. Nb5 {[%emt 0:04:51]} Nxa4 {[%emt 0:04:30]} 21. Nxc7 {[%emt 0:00:09]} Nxb2 {[%emt 0:02:05]} 22. Kxb2 {[%emt 0:01:34]} Kxc7 {[%emt 0:00:09]} 23. Rf4 {[%emt 0:09:13]} Rhf8 {[%emt 0:05:38]} 24. Ba5+ {[%emt 0:04:31]} b6 {[%emt 0:00:09]} 25. Rxd8 {[%emt 0:00:08]} Kxd8 {[%emt 0:00:05]} 26. Bc3 {[%emt 0:00:08]} f6 {[%emt 0:01:20]} 27. Re4 {[%emt 0:05:14]} Ke7 {[%emt 0:01:26]} 28. Ra4 {[%emt 0:05:37]} a5 {[%emt 0:01:36]} 29. Rc4 {[%emt 0:00:20]} Rc8 {[%emt 0:00:48]} 30. a4 {[%emt 0:05:25]} Kd6 {[%emt 0:00:36]} 31. Kb3 {[%emt 0:01:26]} Rc7 {[%emt 0:00:56]} 32. f4 {[%emt 0:04:19]} Kd5 {[%emt 0:01:19]} 33. g4 {[%emt 0:01:59]} Rb7 {[%emt 0:01:56]} 34. Bd2 {[%emt 0:02:37]} b5 {[%emt 0:04:07]} 35. Rc3 {[%emt 0:00:07]} bxa4+ {[%emt 0:06:08]} 36. Kxa4 {[%emt 0:00:17]} Rb4+ {[%emt 0:00:20]} 37. Kxa5 {[%emt 0:00:35]} Rd4 {[%emt 0:00:18]} 38. Rxc5+ {[%emt 0:09:20]} Kxc5 {[%emt 0:00:05]} 39. Be3 {[%emt 0:00:03]} Kc4 {[%emt 0:00:26]} 40. Bxd4 {[%emt 0:00:00]} Kxd4 {[%emt 0:00:04]} 41. Kb5 {[%emt 0:00:56]} Kc3 {[%emt 0:23:17]} 42. Kc5 {[%emt 0:01:26]} Kxc2 {[%emt 0:00:10]} 43. Kd6 {[%emt 0:02:14]} Kd3 {[%emt 0:00:05]} 44. Kxe6 {[%emt 0:01:12]} Ke4 {[%emt 0:00:05]} 45. Kf7 {[%emt 0:06:34]} Kxf4 {[%emt 0:00:25]} 46. Kxg7 {[%emt 0:00:08]} Kxg4 {[%emt 0:01:45]} 1/2-1/2

[Event "EIWCC 2018"]
[Site "Vysoke Tatry"]
[Date "2018.04.11"]
[Round "4"]
[White "Mikadze, Miranda"]
[Black "Osmak, Iulija"]
[Result "0-1"]
[ECO "C16"]
[WhiteElo "2216"]
[BlackElo "2361"]
[Annotator "NA"]
[PlyCount "68"]
[EventDate "2018.??.??"]
[EventType "swiss"]
[EventCountry "SVK"]
[SourceTitle "playchess.com"]
[Source "ChessBase"]
[SourceQuality "1"]
[TimeControl "40/5400+30:1800+30"]

{[%evp 17,54,-7,0,9,3,32767,0,-15,3,0,11,11,18,0,31,-31,-20,-35,-15,-17,13,0,12,6,12,32767,16,8,13,0,12,13,0,0,0,0,0,32767,0]} 1. e4 {[%emt 0:00:00]} e6 {[%emt 0:01:23]} 2. d4 {[%emt 0:00:00]} d5 {[%emt 0:00:06]} 3. Nc3 {[%emt 0:00:00]} Bb4 {[%emt 0:00:05]} 4. e5 {[%emt 0:03:36]} Ne7 {[%emt 0:00:36]} 5. Bd2 {[%emt 0:03:14]} b6 {[%emt 0:00:47]} 6. a3 {[%emt 0:01:26]} Bxc3 {[%emt 0:00:13] C16: French: 3 Nc3 Bb4 4 e5: Lines without ...c5} 7. Bxc3 {[%emt 0:00:14]} Ba6 {[%emt 0:01:16]} 8. Bxa6 {[%emt 0:03:21]} Nxa6 {[%emt 0:00:06]} 9. Bd2 $146 {[%emt 0:04:20]} ({Predecessor:} 9. Qd3 Nb8 10. O-O-O Qd7 11. Ne2 O-O 12. g4 c5 13. f4 Nbc6 14. Rdf1 {1-0 (54) Munguntuul,B (2397)-Socko,M (2471) Riadh 2017}) 9... c5 {[%emt 0:06:03]} 10. c3 {[%emt 0:00:04]} O-O {[%emt 0:00:43]} 11. Ne2 {[%emt 0:02:03]} Qd7 {[%emt 0:03:30]} 12. O-O {[%emt 0:02:57]} Rac8 {[%emt 0:00:59]} 13. Ng3 {[%emt 0:00:37]} cxd4 {[%emt 0:10:48]} 14. cxd4 {[%emt 0:00:05]} Rc4 {[%emt 0:00:14]} 15. Bc3 {[%emt 0:07:03]} Nc7 {[%emt 0:03:57]} 16. a4 {[%emt 0:01:02]} b5 {[%emt 0:03:27]} 17. axb5 {[%emt 0:09:34]} Nxb5 {[%emt 0:00:33]} 18. Ne2 {[%emt 0:00:05]} Nf5 {[%emt 0:08:45]} 19. Qd3 {[%emt 0:02:26]} Nxc3 {[%emt 0:05:06]} 20. bxc3 {[%emt 0:00:04]} Rb8 {[%emt 0:05:34]} 21. Rfb1 {[%emt 0:04:01]} Qc7 {[%emt 0:11:00]} 22. g3 {[%emt 0:03:18]} Ne7 {[%emt 0:00:46]} 23. Qc2 {[%emt 0:03:25]} g6 {[%emt 0:03:15]} 24. h4 {[%emt 0:00:21]} h5 {[%emt 0:02:14]} 25. Kg2 {[%emt 0:02:48]} Rxb1 {[%emt 0:00:37]} 26. Qxb1 {[%emt 0:00:07]} Rc6 {[%emt 0:01:04]} 27. Ra3 {[%emt 0:05:50]} Rb6 $11 {[%emt 0:02:36]} 28. Qa2 {[%emt 0:00:51]} Nc6 {[%emt 0:00:50]} 29. Nc1 {[%emt 0:04:52]} Nxd4 {[%emt 0:06:03]} 30. cxd4 {[%emt 0:07:44]} Qxc1 {[%emt 0:00:22]} 31. Rxa7 {[%emt 0:00:09]} Rb1 {[%emt 0:01:53]} 32. Ra8+ {[%emt 0:02:05]} Kg7 {[%emt 0:03:53]} 33. Kf3 {[%emt 0:00:08]} Qd1+ {[%emt 0:01:51]} 34. Kf4 {[%emt 0:00:17]} Qxd4+ {[%emt 0:00:08]} 0-1

[Event "EIWCC 2018"]
[Site "Vysoke Tatry"]
[Date "2018.04.11"]
[Round "4"]
[White "Zherebtsova, Alexandra"]
[Black "Michna, Marta"]
[Result "1-0"]
[ECO "A40"]
[WhiteElo "2202"]
[BlackElo "2367"]
[Annotator "NA"]
[PlyCount "59"]
[EventDate "2018.??.??"]
[EventType "swiss"]
[EventCountry "SVK"]
[SourceTitle "playchess.com"]
[Source "ChessBase"]
[SourceQuality "1"]
[TimeControl "40/5400+30:1800+30"]

1. d4 {[%emt 0:00:00]} e6 {[%emt 0:00:10]} 2. Nf3 {[%emt 0:00:04]} b6 {[%emt 0:00:04]} 3. e4 {[%emt 0:00:59]} Bb7 {[%emt 0:00:07]} 4. Bd3 {[%emt 0:00:29]} c5 {[%emt 0:01:12]} 5. c3 {[%emt 0:03:20]} d6 {[%emt 0:00:39]} 6. O-O {[%emt 0:03:01]} Nd7 {[%emt 0:03:04]} 7. Qe2 {[%emt 0:07:20]} Ngf6 {[%emt 0:06:49]} 8. a4 {[%emt 0:07:45]} Be7 {[%emt 0:13:40]} 9. Nbd2 {[%emt 0:08:27]} d5 {[%emt 0:07:29]} (9... Qc7 $14) 10. e5 {[%emt 0:07:31]} Nh5 {[%emt 0:00:26] [#]} 11. Nb1 $1 {[%emt 0:08:16]} g6 {[%emt 0:01:50] [#]} 12. g4 {[%emt 0:06:29]} (12. Bh6 $142 $1) 12... Ng7 $1 {[%emt 0:00:23]} 13. Bh6 {[%emt 0:00:07]} O-O {[%emt 0:00:46]} 14. Nbd2 {[%emt 0:06:17]} Qc7 {[%emt 0:07:29]} 15. h4 {[%emt 0:10:42]} Rae8 {[%emt 0:03:50] [#]} (15... f6 $14) 16. h5 $18 {[%emt 0:06:19]} f5 {[%emt 0:03:47]} 17. exf6 {[%emt 0:08:19]} Rxf6 {[%emt 0:06:46]} 18. hxg6 {[%emt 0:04:17]} Nf8 {[%emt 0:05:38]} 19. Qe5 {[%emt 0:06:46]} Qd8 {[%emt 0:00:31]} 20. gxh7+ Nxh7 {[%emt 0:01:51]} 21. Bxg7 {[%emt 0:01:33]} Kxg7 {[%emt 0:02:38]} 22. g5 {[%emt 0:00:10]} Rg8 {[%emt 0:02:03]} 23. gxf6+ {[%emt 0:00:43]} Kf7+ {[%emt 0:00:01]} 24. Kh1 {[%emt 0:00:39]} Nxf6 {[%emt 0:00:04]} 25. Ng5+ {[%emt 0:01:03]} Rxg5 {[%emt 0:00:39]} 26. Qxg5 {[%emt 0:00:06]} Qh8+ {[%emt 0:00:01]} 27. Kg2 {[%emt 0:01:15]} Ne4 {[%emt 0:00:15]} 28. Qf4+ {[%emt 0:00:22]} Bf6 {[%emt 0:00:02]} 29. Nxe4 {[%emt 0:00:59]} dxe4 {[%emt 0:00:04]} 30. Bxe4 {[%emt 0:00:22]} 1-0

[Event "EIWCC 2018"]
[Site "Vysoke Tatry"]
[Date "2018.04.11"]
[Round "4"]
[White "Ghukasyan, Siranush"]
[Black "Sliwicka, Alicja"]
[Result "1-0"]
[ECO "B56"]
[WhiteElo "2195"]
[BlackElo "2329"]
[Annotator "NA"]
[PlyCount "85"]
[EventDate "2018.??.??"]
[EventType "swiss"]
[EventCountry "SVK"]
[SourceTitle "playchess.com"]
[Source "ChessBase"]
[SourceQuality "1"]
[TimeControl "40/5400+30:1800+30"]

1. e4 {[%emt 0:00:48]} c5 {[%emt 0:00:06]} 2. Nf3 {[%emt 0:00:05]} d6 {[%emt 0:00:07]} 3. d4 {[%emt 0:00:05]} cxd4 {[%emt 0:00:05]} 4. Nxd4 {[%emt 0:00:04]} Nf6 {[%emt 0:00:06]} 5. Nc3 {[%emt 0:00:04]} Bd7 {[%emt 0:00:06]} 6. Be2 {[%emt 0:03:35]} e5 {[%emt 0:00:17] B56: Classical Sicilian: Unusual Lines} (6... Nc6 7. Be3 e6 8. g4 h6 9. f4 Nxd4 10. Qxd4 e5 11. fxe5 Nxg4 12. O-O-O Nxe3 13. Qxe3 Qg5 14. Qxg5 hxg5 15. exd6 O-O-O {½-½ (32) So,W (2812)-Carlsen,M (2832) Leuven 2017}) 7. Nf3 {[%emt 0:01:58]} Bc6 {[%emt 0:00:14]} 8. Bg5 {[%emt 0:02:17]} Nbd7 {[%emt 0:00:26]} 9. Nd2 {[%emt 0:06:46]} Be7 {[%emt 0:02:07]} 10. Nc4 $146 {[%emt 0:08:02]} ({Predecessor:} 10. Be3 Nb6 11. O-O d5 12. Bxb6 axb6 13. exd5 Nxd5 14. Nxd5 Qxd5 {0-1 (30) Ziemniak,P (1838)-Sliwicka,A (2003) Jastrzebia Gora 2015}) 10... Qc7 {[%emt 0:03:40]} 11. Ne3 {[%emt 0:06:26]} h6 {[%emt 0:10:46]} 12. Bxf6 {[%emt 0:01:20]} Nxf6 {[%emt 0:00:10]} 13. Bf3 {[%emt 0:03:23]} O-O {[%emt 0:02:43]} 14. O-O {[%emt 0:00:12]} b5 {[%emt 0:04:34]} 15. a3 {[%emt 0:05:56]} a5 {[%emt 0:03:21]} 16. Qd2 {[%emt 0:03:12]} Qb7 {[%emt 0:03:44]} 17. Nf5 {[%emt 0:11:54]} Rfd8 {[%emt 0:07:00]} 18. Rfd1 {[%emt 0:05:22]} Bf8 {[%emt 0:01:37]} 19. Qd3 {[%emt 0:04:06]} b4 {[%emt 0:09:43]} 20. axb4 {[%emt 0:01:32]} axb4 {[%emt 0:00:08]} 21. Nd5 {[%emt 0:00:16]} Nxd5 {[%emt 0:01:37]} 22. exd5 {[%emt 0:00:01]} Bd7 {[%emt 0:01:41]} 23. Ne3 {[%emt 0:02:02]} g6 {[%emt 0:01:15]} 24. Qb3 {[%emt 0:02:22]} f5 {[%emt 0:04:18]} 25. c3 {[%emt 0:04:58]} Rdb8 {[%emt 0:04:09]} 26. c4 {[%emt 0:01:59]} Kh7 {[%emt 0:04:24]} 27. c5 {[%emt 0:05:56]} dxc5 {[%emt 0:03:36]} 28. d6 {[%emt 0:00:08]} e4 {[%emt 0:00:23]} 29. Rxa8 {[%emt 0:01:16]} Rxa8 {[%emt 0:00:22]} 30. Qf7+ {[%emt 0:02:58]} Bg7 {[%emt 0:03:14]} 31. Nd5 {[%emt 0:06:18]} Kh8 {[%emt 0:05:18] [#]} 32. Nc7 $11 {[%emt 0:09:35]} ({White should play} 32. Be2 $1 $16 Rf8 33. Qxg6) 32... Rf8 {[%emt 0:04:53]} 33. Qxd7 {[%emt 0:00:04]} exf3 {[%emt 0:00:59]} 34. Qe7 {[%emt 0:00:15]} Qe4 {[%emt 0:10:14]} 35. h3 {[%emt 0:01:40]} Rg8 {[%emt 0:02:27]} 36. Re1 {[%emt 0:00:30]} Qc2 {[%emt 0:03:27]} 37. Ne6 {[%emt 0:00:19]} Qxb2 {[%emt 0:01:18]} 38. Nxg7 {[%emt 0:00:41]} Qxg7 {[%emt 0:00:10]} 39. d7 {[%emt 0:00:14]} Qd4 {[%emt 0:03:32]} 40. Qe5+ {[%emt 0:00:00]} Qxe5 {[%emt 0:00:35]} 41. Rxe5 {[%emt 0:00:16]} b3 {[%emt 0:00:26]} 42. Re8 {[%emt 0:00:04]} b2 {[%emt 0:00:06]} 43. Rxg8+ {[%emt 0:00:04]} 1-0

[Event "EIWCC 2018"]
[Site "Vysoke Tatry"]
[Date "2018.04.11"]
[Round "4"]
[White "Petrenko, Svetlana"]
[Black "Mkrtchian, Lilit"]
[Result "1/2-1/2"]
[ECO "A36"]
[WhiteElo "2178"]
[BlackElo "2403"]
[Annotator "ChessBase"]
[PlyCount "54"]
[EventDate "2018.??.??"]
[EventType "swiss"]
[EventCountry "SVK"]
[SourceTitle "playchess.com"]
[Source "ChessBase"]
[SourceQuality "1"]
[TimeControl "40/5400+30:1800+30"]

1. c4 c5 2. Nc3 g6 3. g3 Bg7 4. Bg2 Nc6 5. e4 b6 6. d3 Bb7 7. Nge2 d6 8. O-O e6 9. Be3 Nd4 10. Bxd4 cxd4 11. Qa4+ Ke7 12. Nb5 e5 13. f4 a6 14. Na3 Nh6 15. h3 Re8 16. Qb4 f6 17. Rf2 Qc7 18. Raf1 Qc5 19. Qd2 Nf7 20. b4 Qc7 21. Qb2 Kf8 22. g4 Kg8 23. h4 Re7 24. f5 g5 25. h5 Ree8 26. Bf3 Rec8 27. Rc1 Qd7 1/2-1/2